Workbook

Sheet 支出
B3: 活動預算表 [活動名稱]
H4: 支出
H6: 預估 | I6: 實際
C7: 總支出 | H7: =SUM(D14,D22,D28,D35,H14,H22,H27) -> NT$1,145.00 | I7: =SUM(E14,E22,E28,E35,I14,I22,I27) -> NT$395.00
C9: 場地 | D9: 預估 | E9: 實際 | G9: 茶點 | H9: 預估 | I9: 實際
C10: 會議室和禮堂地費 | D10: NT$500.00 | E10: NT$250.00 | G10: 食物
C11: 現場工作人員 | D11: NT$400.00 | E11: NT$50.00 | G11: 飲料
C12: 設備 | G12: 桌巾
C13: 桌椅 | G13: 工作人員和小費
C14: 合計 | D14: =SUBTOTAL(109,表格1[預估]) -> NT$900.00 | E14: =SUBTOTAL(109,表格1[實際]) -> NT$300.00 | G14: 合計 | H14: =SUBTOTAL(109,表格5[預估]) -> NT$0.00 | I14: =SUBTOTAL(109,表格5[實際]) -> NT$0.00
C16: 佈置裝飾 | D16: 預估 | E16: 實際 | G16: 節目 | H16: 預估 | I16: 實際
C17: 花飾 | D17: NT$200.00 | E17: NT$50.00 | G17: 表演者
C18: 蠟燭 | G18: 演講者
C19: 燈光 | G19: 旅遊
C20: 氣球 | G20: 住宿費
C21: 紙類用品 | G21: 其他
C22: 合計 | D22: =SUBTOTAL(109,表格2[預估]) -> NT$200.00 | E22: =SUBTOTAL(109,表格2[實際]) -> NT$50.00 | G22: 合計 | H22: =SUBTOTAL(109,表格6[預估]) -> NT$0.00 | I22: =SUBTOTAL(109,表格6[實際]) -> NT$0.00
C24: 宣傳 | D24: 預估 | E24: 實際 | G24: 獎品 | H24: 預估 | I24: 實際
C25: 平面設計 | D25: NT$45.00 | E25: NT$45.00 | G25: 獎徽/獎牌/獎盃
C26: 影印/列印 | G26: 禮物
C27: 郵資 | G27: 合計 | H27: =SUBTOTAL(109,表格7[預估]) -> NT$0.00 | I27: =SUBTOTAL(109,表格7[實際]) -> NT$0.00
C28: 合計 | D28: =SUBTOTAL(109,表格3[預估]) -> NT$45.00 | E28: =SUBTOTAL(109,表格3[實際]) -> NT$45.00
C30: 其他 | D30: 預估 | E30: 實際
C31: 電話
C32: 交通
C33: 文具用品
C34: 傳真服務
C35: 合計 | D35: =SUBTOTAL(109,表格4[預估]) -> NT$0.00 | E35: =SUBTOTAL(109,表格4[實際]) -> NT$0.00

Sheet 收入
B3: 活動預算表 [活動名稱]
F4: 收入
F6: 預估 | G6: 實際
B7: 總收入 | F7: =SUM(F14,F21,F28,F36) -> NT$1,936.00 | G7: =SUM(G14,G21,G28,G36) -> NT$1,831.00
B9: 門票
B10: 預估 | C10: 實際 | F10: 預估 | G10: 實際
B11: 300 | C11: 278 | D11: 成人 @ | E11: NT$5.00 | F11: =B11*E11 -> NT$1,500.00 | G11: =C11*E11 -> NT$1,390.00
B12: 197 | C12: 195 | D12: 兒童 @ | E12: NT$2.00 | F12: =B12*E12 -> NT$394.00 | G12: =C12*E12 -> NT$390.00
B13: 42 | C13: 51 | D13: 其他 @ | E13: NT$1.00 | F13: =B13*E13 -> NT$42.00 | G13: =C13*E13 -> NT$51.00
F14: =SUM(F11:F13) -> NT$1,936.00 | G14: =SUM(G11:G13) -> NT$1,831.00
B16: 節目廣告
B17: 預估 | C17: 實際 | F17: 預估 | G17: 實際
D18: 封面 @ | F18: =B18*E18 -> NT$0.00 | G18: =C18*E18 -> NT$0.00
D19: 半版 @ | F19: =B19*E19 -> NT$0.00 | G19: =C19*E19 -> NT$0.00
D20: 1/4 版 @ | F20: =B20*E20 -> NT$0.00 | G20: =C20*E20 -> NT$0.00
F21: =SUM(F18:F20) -> NT$0.00 | G21: =SUM(G18:G20) -> NT$0.00
B23: 參展商/廠商
B24: 預估 | C24: 實際 | F24: 預估 | G24: 實際
D25: 大型攤位 @ | F25: =B25*E25 -> NT$0.00 | G25: =C25*E25 -> NT$0.00
D26: 中型攤位 @ | F26: =B26*E26 -> NT$0.00 | G26: =C26*E26 -> NT$0.00
D27: 小型攤位 @ | F27: =B27*E27 -> NT$0.00 | G27: =C27*E27 -> NT$0.00
F28: =SUM(F25:F27) -> NT$0.00 | G28: =SUM(G25:G27) -> NT$0.00
B30: 銷售項目
B31: 預估 | C31: 實際 | F31: 預估 | G31: 實際
D32: 項目 @ | F32: =B32*E32 -> NT$0.00 | G32: =C32*E32 -> NT$0.00
D33: 項目 @ | F33: =B33*E33 -> NT$0.00 | G33: =C33*E33 -> NT$0.00
D34: 項目 @ | F34: =B34*E34 -> NT$0.00 | G34: =C34*E34 -> NT$0.00
D35: 項目 @ | F35: =B35*E35 -> NT$0.00 | G35: =C35*E35 -> NT$0.00
F36: =SUM(F32:F35) -> NT$0.00 | G36: =SUM(G32:G35) -> NT$0.00

Sheet 摘要
B3: 活動預算表 [活動名稱]
F4: 損益摘要
F6: 預估 | G6: 實際
B7: 總收入 | F7: =收入!F7 -> NT$1,936.00 | G7: =收入!G7 -> NT$1,831.00
B8: 總支出 | F8: =支出!H7 -> NT$1,145.00 | G8: =支出!I7 -> NT$395.00
B9: 總收益 (或損失) | F9: =F7-F8 -> NT$791.00 | G9: =G7-G8 -> NT$1,436.00
